fUSD/lending_fUSD_20240406
["ID","MTS","AMOUNT","RATE_DAILY","PERIOD"]
[321668684,1712364672659,343.52823865,0.000154,2]
[321668685,1712364672681,343.52823865,0.000154,2]
[321668686,1712364672703,343.52823865,0.000154,2]
[321668687,1712364672726,343.52823865,0.000154,2]
[321668688,1712364672748,343.52823865,0.000154,2]
[321668689,1712364672770,343.52823865,0.000154,2]
[321668690,1712364672793,343.52823865,0.000154,2]
[321668691,1712364672815,343.52823865,0.000154,2]
[321668692,1712364672838,343.52823865,0.000154,2]
[321668693,1712364672860,343.52823865,0.000154,2]
[321668694,1712364672885,164.7176135,0.000154,2]
[321668695,1712364681325,750.0,9e-05,2]
[321668696,1712364686963,150.0,0.00018,2]
[321668697,1712364686984,150.0,0.00018,2]
[321668698,1712364687005,150.0,0.00018,2]
[321668699,1712364687025,58.50974852,0.00018,2]
[321668700,1712364687289,581.78309698,0.00025,30]
[321668701,1712364717110,1050.0,6.94e-05,2]
[321668702,1712364750707,150.0,0.00015,2]
[321668703,1712364750730,258.8939888,0.00015,2]
[321668704,1712364869266,150.0,0.00015,2]
[321668705,1712364869287,150.0,0.00015,2]
[321668706,1712364869308,150.0,0.00015,2]
[321668707,1712364869330,150.0,0.00015,2]
[321668708,1712364869350,150.0,0.00015,2]
[321668709,1712364869370,150.0,0.00015,2]
[321668710,1712364869391,150.0,0.00015,2]
[321668711,1712364869412,150.0,0.00015,2]
[321668712,1712364869432,150.0,0.00015,2]
[321668713,1712364869452,150.0,0.00015,2]
[321668714,1712364869473,150.0,0.00015,2]
[321668715,1712364869493,150.0,0.00015,2]
[321668716,1712364869514,150.0,0.00015,2]
[321668717,1712364869536,150.0,0.00015,2]
[321668718,1712364869557,150.0,0.00015,2]
[321668719,1712364869577,150.0,0.00015,2]
[321668720,1712364869598,150.0,0.00015,2]
[321668721,1712364869619,150.0,0.00015,2]
[321668722,1712364869641,150.0,0.00015,2]
[321668723,1712364869662,150.0,0.00015,2]
[321668724,1712364919779,1450.0,0.00021,3]
[321668725,1712364920858,1500.0,0.00023,3]
[321668726,1712365393581,259.9612311,0.0001725,2]
[321668735,1712365832236,-1232.936,0.00018694,2]
[321668736,1712365832249,-4861.3735122,0.00018694,2]
[321668737,1712365832259,-403.91962114,0.00018695,2]
[321668738,1712365832268,-160.0,0.00018695,2]
[321668739,1712365832278,-297.99,0.00021553,2]
[321668740,1712365832287,-2215.507344,0.00022885,2]
[321668741,1712365832296,-1474.19454034,0.00023,2]
[321668742,1712365832305,-1324.16892015,0.00023,2]
[321668743,1712365832315,-2886.41367264,0.0002301,2]
[321668744,1712365832324,-1000.0,0.00023442,2]
[321668745,1712365832333,-317.78,0.00023482,2]
[321668746,1712365832343,-879.03,0.00023595,2]
[321668747,1712365832352,-297.99,0.00023817,2]
[321668748,1712365832362,-224.46237227,0.00024,2]
[321668749,1712365832371,-40523.89398716,0.00024,2]
[321668750,1712365832397,-584.76965572,0.00024,2]
[321668751,1712365832407,-207.88455727,0.000241,2]
[321668752,1712365832416,-499.99,0.000241,2]
[321668753,1712365832425,-302.8113,0.00024156,2]
[321668754,1712365832434,-2500.0,0.00024156,2]
[321668755,1712365832443,-459.4172564,0.00024156,2]
[321668756,1712365832453,-2525.61629303,0.00024256,2]
[321668758,1712365832465,-409.38,0.00024256,2]
[321668780,1712365838018,-826.604797,0.00024156,2]
[321668781,1712365838028,-1990.69620133,0.00024256,2]
[321668782,1712365838463,-34995.50380564,0.00024256,2]
[321668783,1712365838473,-100000.0,0.00024256,2]
[321668784,1712365838483,-245000.0,0.00024256,2]
[321668785,1712365838493,-459.41725638,0.00024256,2]
[321668786,1712365838503,-1000.0,0.00024356,2]
[321668787,1712365838517,-519.19,0.00024386,2]
[321668788,1712365838528,-150.0,0.00024386,2]
[321668789,1712365838538,-300.0,0.00024386,2]
[321668791,1712365838549,-150.0,0.00024386,2]
[321668792,1712365838560,-150.0,0.00024386,2]
[321668793,1712365838570,-245.92,0.00024386,2]
[321668794,1712365838580,-150.0,0.00024386,2]
[321668795,1712365838591,-150.0,0.00024386,2]
[321668796,1712365838601,-323.89,0.00024386,2]
[321668797,1712365838612,-348.76,0.00024386,2]
[321668798,1712365838622,-150.0,0.00024386,2]
[321668799,1712365838632,-150.0,0.00024386,2]
[321668800,1712365838641,-150.0,0.00024386,2]
[321668801,1712365838650,-150.0,0.00024386,2]
[321668802,1712365838660,-150.0,0.00024386,2]
[321668803,1712365838673,-150.0,0.00024386,2]
[321668804,1712365838684,-150.0,0.00024386,2]
[321668805,1712365838694,-371.06,0.00024386,2]
[321668806,1712365838704,-150.0,0.00024386,2]
[321668807,1712365838714,-150.0,0.00024386,2]
[321668808,1712365838725,-150.0,0.00024386,2]
[321668809,1712365838735,-150.0,0.00024386,2]
[321668810,1712365838746,-150.0,0.00024386,2]
[321668811,1712365838757,-519.63,0.00024386,2]
[321668812,1712365838768,-150.0,0.00024386,2]
[321668813,1712365838777,-150.0,0.00024386,2]
[321668814,1712365838787,-162.01,0.00024386,2]
[321668815,1712365838798,-150.0,0.00024386,2]
[321668816,1712365838808,-519.63,0.00024386,2]
[321668817,1712365838818,-150.0,0.00024386,2]
[321668818,1712365838828,-150.0,0.00024386,2]
[321668819,1712365838837,-150.0,0.00024386,2]
[321668820,1712365838847,-162.01,0.00024386,2]
[321668821,1712365838858,-150.0,0.00024386,2]
[321668822,1712365838868,-348.76,0.00024386,2]
[321668823,1712365838879,-150.0,0.00024386,2]
[321668824,1712365838889,-519.63,0.00024386,2]
[321668825,1712365838898,-150.0,0.00024386,2]
[321668826,1712365838908,-417.24,0.00024386,2]
[321668827,1712365838918,-150.0,0.00024386,2]
[321668828,1712365838928,-150.0,0.00024386,2]
[321668829,1712365838938,-150.0,0.00024386,2]
[321668830,1712365838948,-348.76,0.00024386,2]
[321668831,1712365838962,-162.01,0.00024386,2]
[321668832,1712365838973,-150.0,0.00024386,2]
[321668833,1712365838982,-417.24,0.00024386,2]
[321668834,1712365838993,-519.63,0.00024386,2]
[321668835,1712365839003,-162.01,0.00024386,2]
[321668836,1712365839014,-348.76,0.00024386,2]
[321668837,1712365839024,-150.0,0.00024386,2]
[321668838,1712365839035,-150.0,0.00024386,2]
[321668839,1712365839046,-162.01,0.00024386,2]
[321668840,1712365839055,-348.76,0.00024386,2]
[321668841,1712365839067,-519.63,0.00024386,2]
[321668842,1712365839077,-417.24,0.00024386,2]
[321668843,1712365839088,-417.24,0.00024386,2]
[321668844,1712365839098,-152.29,0.00024386,2]
[321668845,1712365839109,-150.0,0.00024386,2]
[321668846,1712365839120,-400.68,0.00024386,2]
[321668847,1712365839131,-417.24,0.00024386,2]
[321668848,1712365839141,-519.63,0.00024386,2]
[321668849,1712365839150,-348.76,0.00024386,2]
[321668850,1712365839160,-300.0,0.00024386,2]
[321668851,1712365839169,-489.0,0.000244,2]
[321668852,1712365839179,-806.28900472,0.000245,2]
[321668853,1712365839190,-155.0,0.000245,2]
[321668854,1712365839200,-500.0,0.00024657,2]
[321668855,1712365839211,-329.96488695,0.00024657,2]
[321668856,1712365839222,-500.0,0.00024657,2]
[321668857,1712365839233,-617.9791077,0.00024657,2]
[321668858,1712365839243,-500.0,0.00024657,2]
[321668859,1712365839255,-500.0,0.00024657,2]
[321668860,1712365839264,-500.0,0.00024657,2]
[321668861,1712365839275,-500.0,0.00024657,2]
[321668862,1712365839286,-500.0,0.00024657,2]
[321668863,1712365839298,-596.12132909,0.00024657,2]
[321668864,1712365839309,-500.0,0.00024657,2]
[321668865,1712365839320,-500.0,0.00024657,2]
[321668866,1712365839330,-212.76267319,0.00024657,2]
[321668867,1712365839341,-209.93,0.00024657,2]
[321668868,1712365839352,-500.0,0.00024657,2]
[321668869,1712365839361,-500.0,0.00024657,2]
[321668870,1712365839371,-559.06276835,0.00024657,2]
[321668871,1712365839380,-500.0,0.00024657,2]
[321668872,1712365839392,-500.0,0.00024657,2]
[321668873,1712365839402,-500.0,0.00024657,2]
[321668874,1712365839412,-500.0,0.00024657,2]
[321668875,1712365839421,-500.0,0.00024657,2]
[321668876,1712365839431,-500.0,0.00024657,2]
[321668877,1712365839442,-500.0,0.00024657,2]
[321668878,1712365839452,-500.0,0.00024657,2]
[321668879,1712365839463,-500.0,0.00024657,2]
[321668880,1712365839474,-500.0,0.00024657,2]
[321668881,1712365839485,-500.0,0.00024657,2]
[321668882,1712365839495,-542.93591909,0.00024657,2]
[321668883,1712365839505,-500.0,0.00024657,2]
[321668884,1712365839516,-500.0,0.00024657,2]
[321668885,1712365839529,-500.0,0.00024657,2]
[321668886,1712365839539,-500.0,0.00024657,2]
[321668887,1712365839549,-500.0,0.00024657,2]
[321668888,1712365839561,-500.0,0.00024657,2]
[321668889,1712365839572,-500.0,0.00024657,2]
[321668890,1712365839582,-500.0,0.00024657,2]
[321668891,1712365839593,-500.0,0.00024657,2]
[321668892,1712365839604,-500.0,0.00024657,2]
[321668893,1712365839614,-287.94135913,0.00024657,2]
[321668894,1712365839623,-500.0,0.00024657,2]
[321668895,1712365839633,-500.0,0.00024657,2]
[321668896,1712365839642,-500.0,0.00024657,2]
[321668897,1712365839652,-500.0,0.00024657,2]
[321668898,1712365839661,-500.0,0.00024657,2]
[321668899,1712365839670,-500.0,0.00024657,2]
[321668900,1712365839681,-500.0,0.00024657,2]
[321668901,1712365839691,-500.0,0.00024657,2]
[321668902,1712365839700,-500.0,0.00024657,2]
[321668903,1712365839710,-500.0,0.00024657,2]
[321668904,1712365839720,-561.15,0.00024657,2]
[321668905,1712365839729,-500.0,0.00024657,2]
[321668906,1712365839739,-500.0,0.00024657,2]
[321668907,1712365839749,-500.0,0.00024657,2]
[321668908,1712365839758,-500.0,0.00024657,2]
[321668909,1712365839767,-500.0,0.00024657,2]
[321668910,1712365839777,-500.0,0.00024657,2]
[321668911,1712365839787,-500.0,0.00024657,2]
[321668912,1712365839796,-500.0,0.00024657,2]
[321668913,1712365839805,-500.0,0.00024657,2]
[321668914,1712365839814,-500.0,0.00024657,2]
[321668915,1712365839824,-500.0,0.00024657,2]
[321668916,1712365839843,-500.0,0.00024657,2]
[321668917,1712365839855,-649.96,0.00024657,2]
[321668918,1712365839864,-500.0,0.00024657,2]
[321668919,1712365839874,-500.0,0.00024657,2]
[321668920,1712365839883,-500.0,0.00024657,2]
[321668921,1712365839893,-500.0,0.00024657,2]
[321668922,1712365839902,-500.0,0.00024657,2]
[321668923,1712365839911,-500.0,0.00024657,2]
[321668924,1712365839921,-500.0,0.00024657,2]
[321668926,1712365839930,-500.0,0.00024657,2]
[321668955,1712365840188,-500.0,0.00024657,2]
[321668957,1712365840198,-500.0,0.00024657,2]
[321668959,1712365840206,-500.0,0.00024657,2]
[321668961,1712365840216,-500.0,0.00024657,2]
[321668963,1712365840225,-500.0,0.00024657,2]
[321668965,1712365840234,-500.0,0.00024657,2]
[321668967,1712365840243,-597.1,0.00024657,2]
[321668969,1712365840253,-597.1,0.00024657,2]
[321668971,1712365840262,-500.0,0.00024657,2]
[321668973,1712365840272,-500.0,0.00024657,2]
[321668975,1712365840282,-500.0,0.00024657,2]
[321668977,1712365840294,-500.0,0.00024657,2]
[321668979,1712365840303,-500.0,0.00024657,2]
[321668981,1712365840313,-500.0,0.00024657,2]
[321668984,1712365840323,-500.0,0.00024657,2]
[321668986,1712365840333,-500.0,0.00024657,2]
[321668988,1712365840343,-500.0,0.00024657,2]
[321668990,1712365840352,-500.0,0.00024657,2]
[321668992,1712365840361,-500.0,0.00024657,2]
[321668994,1712365840371,-500.0,0.00024657,2]
[321668996,1712365840382,-908.96,0.00024657,2]
[321668998,1712365840391,-908.96,0.00024657,2]
[321669000,1712365840401,-500.0,0.00024657,2]
[321669001,1712365840410,-500.0,0.00024657,2]
[321669002,1712365840419,-500.0,0.00024657,2]
[321669003,1712365840431,-500.0,0.00024657,2]
[321669004,1712365840442,-500.0,0.00024657,2]
[321669005,1712365840453,-573.07,0.00024657,2]
[321669006,1712365840463,-500.0,0.00024657,2]
[321669007,1712365840475,-500.0,0.00024657,2]
[321669008,1712365840485,-500.0,0.00024657,2]
[321669009,1712365840495,-500.0,0.00024657,2]
[321669010,1712365840505,-1113.28,0.00024657,2]
[321669011,1712365840516,-1113.28,0.00024657,2]
[321669012,1712365840526,-500.0,0.00024657,2]
[321669013,1712365840536,-500.0,0.00024657,2]
[321669014,1712365840545,-500.0,0.00024657,2]
[321669015,1712365840556,-500.0,0.00024657,2]
[321669016,1712365840565,-500.0,0.00024657,2]
[321669017,1712365840574,-500.0,0.00024657,2]
[321669018,1712365840584,-500.0,0.00024657,2]
[321669019,1712365840594,-500.0,0.00024657,2]
[321669020,1712365840605,-500.0,0.00024657,2]
[321669021,1712365840614,-500.0,0.00024657,2]
[321669022,1712365840623,-500.0,0.00024657,2]
[321669023,1712365840633,-500.0,0.00024657,2]
[321669024,1712365840643,-500.0,0.00024657,2]
[321669025,1712365840652,-500.0,0.00024657,2]
[321669026,1712365840662,-500.0,0.00024657,2]
[321669027,1712365840671,-500.0,0.00024657,2]
[321669028,1712365840681,-500.0,0.00024657,2]
[321669029,1712365840690,-500.0,0.00024657,2]
[321669030,1712365840700,-500.0,0.00024657,2]
[321669031,1712365840711,-500.0,0.00024657,2]
[321669032,1712365840722,-500.0,0.00024657,2]
[321669033,1712365840731,-500.0,0.00024657,2]
[321669034,1712365840740,-500.0,0.00024657,2]
[321669035,1712365840751,-500.0,0.00024657,2]
[321669036,1712365840760,-500.0,0.00024657,2]
[321669037,1712365840770,-500.0,0.00024657,2]
[321669038,1712365840781,-500.0,0.00024657,2]
[321669039,1712365840791,-500.0,0.00024657,2]
[321669040,1712365840801,-500.0,0.00024657,2]
[321669041,1712365840811,-500.0,0.00024657,2]
[321669042,1712365840824,-500.0,0.00024657,2]
[321669043,1712365840834,-500.0,0.00024657,2]
[321669044,1712365840845,-500.0,0.00024657,2]
[321669045,1712365840854,-554.85,0.00024657,2]
[321669046,1712365840864,-554.85,0.00024657,2]
[321669047,1712365840874,-500.0,0.00024657,2]
[321669048,1712365840885,-500.0,0.00024657,2]
[321669049,1712365840896,-500.0,0.00024657,2]
[321669050,1712365840906,-500.0,0.00024657,2]
[321669051,1712365840915,-500.0,0.00024657,2]
[321669052,1712365840925,-500.0,0.00024657,2]
[321669053,1712365840937,-524.80523624,0.00024657,2]
[321669054,1712365840949,-500.0,0.00024657,2]
[321669055,1712365840960,-500.0,0.00024657,2]
[321669056,1712365840971,-500.0,0.00024657,2]
[321669057,1712365840982,-500.0,0.00024657,2]
[321669058,1712365840992,-500.0,0.00024657,2]
[321669059,1712365841002,-500.0,0.00024657,2]
[321669060,1712365841012,-500.0,0.00024657,2]
[321669061,1712365841023,-500.0,0.00024657,2]
[321669062,1712365841034,-500.0,0.00024657,2]
[321669063,1712365841045,-837.1,0.00024657,2]
[321669064,1712365841055,-837.1,0.00024657,2]
[321669065,1712365841067,-500.0,0.00024657,2]
[321669066,1712365841079,-500.0,0.00024657,2]
[321669067,1712365841092,-500.0,0.00024657,2]
[321669068,1712365841104,-500.0,0.00024657,2]
[321669069,1712365841117,-500.0,0.00024657,2]
[321669070,1712365841127,-500.0,0.00024657,2]
[321669071,1712365841137,-619.08,0.00024657,2]
[321669072,1712365841148,-619.08,0.00024657,2]
[321669073,1712365841159,-500.0,0.00024657,2]
[321669074,1712365841170,-500.0,0.00024657,2]
[321669075,1712365841183,-500.0,0.00024657,2]
[321669076,1712365841195,-620.56437159,0.00024657,2]
[321669077,1712365841207,-853.17,0.00024657,2]
[321669078,1712365841220,-853.17,0.00024657,2]
[321669079,1712365841231,-500.0,0.00024657,2]
[321669080,1712365841241,-500.0,0.00024657,2]
[321669081,1712365841252,-500.0,0.00024657,2]
[321669082,1712365841263,-500.0,0.00024657,2]
[321669083,1712365841273,-500.0,0.00024657,2]
[321669084,1712365841284,-500.0,0.00024657,2]
[321669085,1712365841293,-500.0,0.00024657,2]
[321669086,1712365841304,-500.0,0.00024657,2]
[321669087,1712365841316,-500.0,0.00024657,2]
[321669088,1712365841326,-500.0,0.00024657,2]
[321669089,1712365841337,-540.49,0.00024657,2]
[321669090,1712365841349,-500.0,0.00024657,2]
[321669091,1712365841359,-540.49,0.00024657,2]
[321669092,1712365841369,-1047.14,0.00024657,2]
[321669093,1712365841380,-1047.14,0.00024657,2]
[321669094,1712365841390,-500.0,0.00024657,2]
[321669095,1712365841401,-500.0,0.00024657,2]
[321669096,1712365841411,-500.0,0.00024657,2]
[321669097,1712365841420,-500.0,0.00024657,2]
[321669098,1712365841430,-500.0,0.00024657,2]
[321669099,1712365841439,-500.0,0.00024657,2]
[321669100,1712365841448,-500.0,0.00024657,2]
[321669101,1712365841457,-500.0,0.00024657,2]
[321669102,1712365841467,-500.0,0.00024657,2]
[321669103,1712365841477,-500.0,0.00024657,2]
[321669104,1712365841487,-500.0,0.00024657,2]
[321669105,1712365841498,-500.0,0.00024657,2]
[321669106,1712365841510,-500.0,0.00024657,2]
[321669107,1712365841521,-500.0,0.00024657,2]
[321669108,1712365841531,-500.0,0.00024657,2]
[321669109,1712365841541,-500.0,0.00024657,2]
[321669110,1712365841550,-500.0,0.00024657,2]
[321669111,1712365841561,-1077.65,0.00024657,2]
[321669112,1712365841570,-1077.65,0.00024657,2]
[321669113,1712365841580,-500.0,0.00024657,2]
[321669114,1712365841591,-500.0,0.00024657,2]
[321669115,1712365841601,-500.0,0.00024657,2]
[321669116,1712365841611,-500.0,0.00024657,2]
[321669117,1712365841622,-500.0,0.00024657,2]
[321669118,1712365841632,-500.0,0.00024657,2]
[321669119,1712365841642,-656.7,0.00024657,2]
[321669120,1712365841652,-656.7,0.00024657,2]
[321669121,1712365841662,-625.11686637,0.00024657,2]
[321669122,1712365841672,-500.0,0.00024657,2]
[321669123,1712365841683,-500.0,0.00024657,2]
[321669124,1712365841693,-500.0,0.00024657,2]
[321669125,1712365841703,-500.0,0.00024657,2]
[321669126,1712365841713,-500.0,0.00024657,2]
[321669127,1712365841723,-500.0,0.00024657,2]
[321669128,1712365841733,-2273.82,0.00024657,2]
[321669129,1712365841743,-2273.82,0.00024657,2]
[321669130,1712365841753,-500.0,0.00024657,2]
[321669131,1712365841764,-500.0,0.00024657,2]
[321669132,1712365841774,-500.0,0.00024657,2]
[321669133,1712365841784,-500.0,0.00024657,2]
[321669134,1712365841794,-512.0,0.00024657,2]
[321669135,1712365841804,-512.0,0.00024657,2]
[321669136,1712365841813,-500.0,0.00024657,2]
[321669137,1712365841823,-500.0,0.00024657,2]
[321669138,1712365841833,-500.0,0.00024657,2]
[321669139,1712365841843,-500.0,0.00024657,2]
[321669140,1712365841854,-500.0,0.00024657,2]
[321669141,1712365841864,-500.0,0.00024657,2]
[321669142,1712365841873,-500.0,0.00024657,2]
[321669143,1712365841883,-500.0,0.00024657,2]
[321669144,1712365841894,-1485.64,0.00024657,2]
[321669145,1712365841904,-500.0,0.00024657,2]
[321669146,1712365841914,-1485.64,0.00024657,2]
[321669147,1712365841925,-2429.61,0.00024657,2]
[321669148,1712365841935,-2429.61,0.00024657,2]
[321669149,1712365841945,-500.0,0.00024657,2]
[321669150,1712365841954,-500.0,0.00024657,2]
[321669151,1712365841965,-496.72016697,0.00024657,2]
[321669152,1712365841975,-500.0,0.00024657,2]
[321669153,1712365841986,-6003.08,0.00024657,2]
[321669154,1712365841996,-500.0,0.00024657,2]
[321669155,1712365842006,-6003.08,0.00024657,2]
[321669156,1712365842016,-500.0,0.00024657,2]
[321669157,1712365842027,-500.0,0.00024657,2]
[321669158,1712365842037,-500.0,0.00024657,2]
[321669159,1712365842047,-500.0,0.00024657,2]
[321669160,1712365842057,-500.0,0.00024657,2]
[321669161,1712365842068,-500.0,0.00024657,2]
[321669162,1712365842078,-500.0,0.00024657,2]
[321669163,1712365842087,-500.0,0.00024657,2]
[321669164,1712365842097,-500.0,0.00024657,2]
[321669165,1712365842107,-500.0,0.00024657,2]
[321669166,1712365842118,-1171.64,0.00024657,2]
[321669167,1712365842128,-1171.64,0.00024657,2]
[321669168,1712365842139,-500.0,0.00024657,2]
[321669169,1712365842149,-500.0,0.00024657,2]
[321669170,1712365842158,-500.0,0.00024657,2]
[321669171,1712365842168,-500.0,0.00024657,2]
[321669172,1712365842177,-229.28522858,0.00024657,2]
[321669173,1712365842187,-729.37,0.00024657,2]
[321669174,1712365842198,-729.37,0.00024657,2]
[321669175,1712365842209,-500.0,0.00024657,2]
[321669176,1712365842219,-500.0,0.00024657,2]
[321669177,1712365842230,-500.0,0.00024657,2]
[321669178,1712365842240,-500.0,0.00024657,2]
[321669179,1712365842250,-500.0,0.00024657,2]
[321669180,1712365842259,-500.0,0.00024657,2]
[321669181,1712365842269,-500.0,0.00024657,2]
[321669182,1712365842278,-500.0,0.00024657,2]
[321669183,1712365842289,-500.0,0.00024657,2]
[321669184,1712365842299,-500.0,0.00024657,2]
[321669185,1712365842309,-500.0,0.00024657,2]
[321669186,1712365842320,-500.0,0.00024657,2]
[321669187,1712365842330,-500.0,0.00024657,2]
[321669188,1712365842341,-3118.0,0.00024657,2]
[321669189,1712365842351,-500.0,0.00024657,2]
[321669190,1712365842362,-3118.0,0.00024657,2]
[321669191,1712365842371,-500.0,0.00024657,2]
[321669192,1712365842381,-1521.57,0.00024657,2]
[321669193,1712365842392,-1521.57,0.00024657,2]
[321669194,1712365842401,-500.0,0.00024657,2]
[321669195,1712365842410,-500.0,0.00024657,2]
[321669196,1712365842419,-500.0,0.00024657,2]
[321669197,1712365842429,-500.0,0.00024657,2]
[321669198,1712365842439,-500.0,0.00024657,2]
[321669199,1712365842449,-500.0,0.00024657,2]
[321669200,1712365842462,-500.0,0.00024657,2]
[321669201,1712365842473,-500.0,0.00024657,2]
[321669202,1712365842486,-630.74591314,0.00024657,2]
[321669203,1712365842496,-832.64,0.00024657,2]
[321669204,1712365842508,-832.64,0.00024657,2]
[321669205,1712365842523,-500.0,0.00024657,2]
[321669206,1712365842534,-500.0,0.00024657,2]
[321669207,1712365842544,-500.0,0.00024657,2]
[321669208,1712365842554,-500.0,0.00024657,2]
[321669209,1712365842564,-1000.0,0.000247,2]
[321669210,1712365842573,-150.0,0.00024728,2]
[321669211,1712365842583,-164.66928834,0.0002475,2]
[321669212,1712365842593,-987.22707918,0.00024761,2]
[321669213,1712365842603,-150.0,0.00024765,2]
[321669214,1712365842613,-151.9004117,0.00024799,2]
[321669215,1712365842622,-2222.45717539,0.000248,2]
[321669216,1712365842632,-200.0,0.000248,2]
[321669217,1712365842641,-800.0,0.000248,2]
[321669218,1712365842650,-500.0,0.000248,2]
[321669219,1712365842660,-200.0,0.000248,2]
[321669220,1712365842669,-153.00377094,0.000248,2]
[321669221,1712365842678,-1000.0,0.000248,2]
[321669222,1712365842688,-230.59471407,0.00024801,2]
[321669223,1712365842697,-230.59471407,0.0002481,2]
[321669224,1712365842707,-425.42801156,0.00024812,2]
[321669225,1712365842716,-230.59471407,0.00024814,2]
[321669226,1712365842725,-230.59471407,0.00024816,2]
[321669227,1712365842735,-1701.71204622,0.00024816,2]
[321669228,1712365842744,-1701.71204622,0.00024827,2]
[321669229,1712365842754,-425.42801156,0.00024829,2]
[321669230,1712365842763,-1701.71204622,0.00024831,2]
[321669231,1712365842773,-230.59471407,0.00024835,2]
[321669232,1712365842782,-300.0,0.00024838,2]
[321669233,1712365842791,-425.42801156,0.00024839,2]
[321669234,1712365842801,-425.42801156,0.0002484,2]
[321669235,1712365842810,-1500.0,0.0002484,2]
[321669237,1712365842819,-425.42801156,0.00024842,2]
[321669239,1712365842829,-425.42801156,0.00024843,2]
[321669240,1712365842838,-500.0,0.00024846,2]
[321669241,1712365842847,-500.0,0.00024846,2]
[321669242,1712365842856,-1500.0,0.00024847,2]
[321669243,1712365842865,-1701.71204622,0.00024853,2]
[321669244,1712365842875,-1701.71204622,0.00024856,2]
[321669245,1712365842885,-1701.71204622,0.00024858,2]
[321669246,1712365842894,-230.59471407,0.00024862,2]
[321669247,1712365842903,-1942.0,0.00024863,2]
[321669248,1712365842912,-207.0,0.00024863,2]
[321669250,1712365842922,-214.0,0.00024863,2]
[321669251,1712365842931,-425.42801156,0.00024864,2]
[321669252,1712365842940,-1701.71204622,0.00024872,2]
[321669253,1712365842949,-3000.0,0.00024873,2]
[321669254,1712365842959,-425.42801156,0.00024875,2]
[321669255,1712365842968,-230.59471407,0.00024875,2]
[321669256,1712365842977,-230.59471407,0.00024877,2]
[321669257,1712365842986,-500.0,0.00024879,2]
[321669258,1712365842996,-1485.64,0.00024879,2]
[321669259,1712365843005,-5350.0,0.0002488,3]
[321669260,1712365843015,-5800.0,0.00024892,2]
[321669261,1712365843024,-323.60349454,0.00024897,2]
[321669262,1712365843035,-155.0,0.00024897,2]
[321669263,1712365843045,-205.79634065,0.00024897,2]
[321669264,1712365843054,-155.0,0.00024897,2]
[321669265,1712365843063,-342.22701228,0.00024897,2]
[321669266,1712365843073,-887.72115935,0.00024897,2]
[321669267,1712365843083,-155.0,0.00024897,2]
[321669268,1712365843092,-230.59471407,0.00024897,2]
[321669269,1712365843101,-500.0,0.00024898,2]